Workbook

Sheet Annual dep to Retire. Savings
A1: Retirement Savings Estimater | D1: editable | E1: do not edit | G1: Estimation done on: | I1: 2008-09-25
A3: Current Income | D3: Monthly | E3: Annual | G3: Husband DOB | K3: Income / Expense in today's Dollars
A4: Wages - Husband | E4: =D4*12 -> 0 | G4: Wife DOB | K4: (annual numbers)
A5: Wages - Wife | E5: =D5*12 -> 0
A6: Interest | E6: 0 | G6: investment return | K6: Income | M6: =E11 -> 0
A7: Dividends | E7: 0 | G7: inv return in retirement | K7: Expense | M7: =E76 -> 0
A8: Business Revenues | E8: 0 | G8: inflation
A9: Gains | E9: 0 | K9: Net income (loss) | M9: =M6-M7 -> 0
A10: Other (do not include gifts) | E10: 0 | G10: % of today's | M10: ^ Potential net effect on savings ^
B11: Total Income | D11: =SUM(D4:D10) -> 0 | E11: =D11*12 -> 0 | G11: expenses in retirement
K12: Retirement expenses in today's dollars
A13: Current Expenses | G13: Age at Retirement | K13: =I11 -> 0% | L13: of total expenses | M13: =M7*I11 -> 0
A14: Auto | G14: FM
B15: Fuel | E15: 0 | G15: LW | K15: Retirement Income in today's dollars
B16: Insurance | E16: 0 | K16: Social Sec. - Husband | M16: =L16*12 -> 0
B17: Service | E17: 0 | G17: Age at Death | K17: Social Sec. - Wife | M17: =L17*12 -> 0
B18: Other | E18: 0 | G18: FM | K18: Other
A19: Cash | E19: 0 | G19: LW | K19: Other
A20: Charity | E20: 0 | L20: Total Ret. Income | M20: =SUM(M16:M19) -> 0
A21: Child Care | E21: 0 | G21: Age today
A22: Clothing | E22: 0 | G22: FM | I22: =YEAR(TODAY()-I3)-1900 -> 108 | K22: Retirement income shortfall | M22: =M13-M20 -> 0
A23: Computer | E23: 0 | G23: LW | I23: =YEAR(TODAY()-I4)-1900 -> 108
A24: Dining | E24: 0 | K24: Standard Calculation
A25: Entertainment | E25: 0 | G25: Years to Retire
A26: Gifts Given | E26: 0 | G26: FM | I26: =I14-I22 -> -108 | K26: Asset Value Goal at Retirement | M26: =PV(I7-I8,IF(I27<I26,I27,I26),,FV(I7-I8,IF(I31>I30,I31,I30),M22)) -> 0
A27: Groceries | E27: 0 | G27: LW | I27: =I15-I23 -> -108
A28: Health | E28: 0 | K28: Total Savings today | M28: =I56 -> 0
A29: Home Repair | E29: 0 | G29: Years in Retirement
A30: Household | E30: 0 | G30: FM | I30: =I18-I14 -> 0 | K30: Proj. Value of Savings at retirement | M30: =-FV(I6-I8,IF(I27<I26,I27,I26),,M28) -> 0
A31: Insurance | G31: LW | I31: =I19-I15 -> 0
B32: Disability | E32: 0 | K32: Asset Value Shortfall at Retirement | M32: =M26-M30 -> 0
B33: Health | E33: 0 | G33: Years to Death
B34: Home | E34: =D34*12 -> 0 | G34: FM | I34: =I18-I22 -> -108 | K34: Required Annual Retirement Savings | M34: =-PMT(I6-I8,IF(I27<I26,I27,I26),,M32) -> 0
A35: Interest Expense | G35: LW | I35: =I19-I23 -> -108
B36: Mortgage | E36: =D36*12 -> 0
B37: Student Loans | E37: 0 | K37: Conclusions:
B38: Other | E38: 0 | G38: Savings & Retirement Accounts
A39: Medical | G39: Bank A Checking | K39: -Your estimated annual retirement expenses: | M39: =M13 -> 0
B40: Doctor | E40: 0 | G40: Bank A Savings
B41: Medicine | E41: 0 | G41: Bank B Checking | K41: -The estimated annual savings needed now to
A42: Misc | E42: 0 | G42: Bank B Savings | K42: create the necessary savings for retirement: | M42: =M34 -> 0
A43: Personal Care | E43: 0
A44: Recreation | E44: 0 | G44: Bank C savings | K44: -The amount of current annual income
A45: Sched C Bank Charge | E45: =D45*12 -> 0 | G45: Broker A | K45: after cost of living available for savings: | M45: =M9 -> 0
A46: Sched C Business Expenses | E46: 0 | G46: Broker B
A47: Sched C Dues & Subscription | E47: 0 | G47: Rollover IRA | K47: -Extra income available after first saving
A48: Sched C Licenses & Permits | E48: 0 | G48: Roth IRA | K48: for your retirement | M48: =M45-M42 -> 0
A49: Sched C Meals & Entertainment | E49: 0 | G49: SEP IRA
A50: Sched C Office Expenses | E50: 0 | G50: 403(b) | K50: Note: a positive number indicates you have extra money
A51: Sched C Postage & Delivery | E51: 0 | G51: Traditional IRA | K51: available to spend today AFTER first saving enough money
A52: Sched C Printing & Reproduction | E52: 0 | G52: Pension | K52: for your retirement. A negative number means you need
A53: Sched C Trade Associations | E53: 0 | G53: Flex spending | K53: to save more today to fully fund your retirement; so, you
A54: Subscriptions | E54: 0 | G54: Other | K54: can 1) cut some of your costs now and put that savings
A55: Tax | K55: toward your retirement, 2) you will need to find additional
B56: Federal | C56: 13.5% | D56: =C56*D11 -> 0 | E56: 0 | G56: Total Savings | I56: =SUM(I39:I54) -> 0 | K56: sources of income for additional savings, or 3) choose to
B57: State | C57: 5.0% | D57: =C57*D11 -> 0 | E57: 0 | K57: have less savings available to you in your retirement.
B58: Local | C58: 0.0% | D58: =C58*D11 -> 0 | E58: 0
B59: Medicare | C59: 1.45% | E59: 0
B60: Social Security | C60: 6.20% | E60: 0
B61: Real Estate | E61: 0
B62: Other | E62: 0
A63: Utilities
B64: Cell Phone | E64: 0
B65: Local | E65: 0
B66: Long Distance | E66: 0
B67: Gas | E67: 0
B68: Electric | E68: =D68*12 -> 0
B69: Water | E69: 0
B70: Sewer | E70: 0
B71: Internet | E71: 0
A72: Vacation
B73: Lodging | E73: 0
B74: Travel | E74: 0
B75: Other | E75: 0
B76: Total Expenses | D76: =SUM(D15:D75) -> 0 | E76: =SUM(E15:E75) -> 0
B78: Net Income (loss) | D78: =D11-D76 -> 0 | E78: =E11-E76 -> 0

Sheet Savings Goal Template
B2: Current savings for Goal | F2: College Savings
B3: Investment rate of return | E3: 8%
B4: tax rate | E4: 15%
B5: First year college costs | E5: 25,000 | F5: = | G5: =E5/(1+E6)^A30 -> 13,004 | H5: today's dollars
B6: General Inflation | E6: 3.50%
B7: Inflation rate on college costs | E7: 8.00%
B8: periodic deposit | E8: 2,550 | F8: = | G8: =E8/12 -> 212 | H8: monthly
B10: Beginning | H10: Ending
A11: year | B11: balance | C11: deposit | D11: return | E11: subtotal | F11: taxes | G11: withdraw | H11: Balance
A12: 1 | B12: =E2 -> 0 | C12: =E8 -> 2,550 | D12: =(B12+C12)*($E$3) -> 191 | E12: =B12+C12+D12 -> 2,741 | F12: =D12*$E$4 -> 29 | H12: =E12-F12-G12 -> 2,712
A13: 2 | B13: =H12 -> 2,712 | C13: =C12 -> 2,550 | D13: 395 | E13: =B13+C13+D13 -> 5,657 | F13: =D13*$E$4 -> 59 | H13: =E13-F13-G13 -> 5,598
A14: 3 | B14: =H13 -> 5,598 | C14: =C13 -> 2,550 | D14: 611 | E14: =B14+C14+D14 -> 8,758 | F14: 92 | H14: 8,667
A15: 4 | B15: 8,667 | C15: 2,550 | D15: 841 | E15: 12,058 | F15: 126 | H15: 11,931
A16: 5 | B16: 11,931 | C16: 2,550 | D16: 1,086 | E16: 15,567 | F16: 163 | H16: 15,404
A17: 6 | B17: 15,404 | C17: 2,550 | D17: 1,347 | E17: 19,301 | F17: 202 | H17: 19,099
A18: 7 | B18: 19,099 | C18: 2,550 | D18: 1,624 | E18: 23,272 | F18: 244 | H18: 23,029
A19: 8 | B19: 23,029 | C19: 2,550 | D19: 1,918 | E19: 27,497 | F19: 288 | H19: 27,209
A20: 9 | B20: 27,209 | C20: 2,550 | D20: 2,232 | E20: 31,991 | F20: 335 | H20: 31,656
A21: 10 | B21: 31,656 | C21: 2,550 | D21: 2,565 | E21: 36,771 | F21: 385 | H21: 36,386
A22: 11 | B22: 36,386 | C22: 2,550 | D22: 2,920 | E22: 41,856 | F22: 438 | H22: 41,418
A23: 12 | B23: 41,418 | C23: 2,550 | D23: 3,298 | E23: 47,265 | F23: 495 | H23: 46,771
A24: 13 | B24: 46,771 | C24: 2,550 | D24: 3,699 | E24: 53,019 | F24: 555 | H24: 52,465
A25: 14 | B25: 52,465 | C25: 2,550 | D25: 4,126 | E25: 59,140 | F25: 619 | H25: 58,522
A26: 15 | B26: 58,522 | C26: 2,550 | D26: 4,580 | E26: 65,652 | F26: 687 | H26: 64,965
A27: 16 | B27: 64,965 | C27: 2,550 | D27: 5,064 | E27: 72,578 | F27: 760 | H27: 71,818
A28: 17 | B28: 71,818 | C28: 2,550 | D28: 5,578 | E28: 79,946 | F28: 837 | H28: 79,109
A29: 18 | B29: 79,109 | C29: 2,550 | D29: 6,124 | E29: 87,783 | F29: 919 | H29: 86,865
A30: 19 | B30: 86,865 | C30: 2,550 | D30: 6,706 | E30: 96,120 | F30: 1,006 | G30: =E5 -> 25,000 | H30: 70,115
A31: 20 | B31: 70,115 | C31: 2,550 | D31: 5,450 | E31: 78,114 | F31: 817 | G31: =G30*(1+$E$7) -> 27,000 | H31: 50,297
A32: 21 | B32: 50,297 | C32: 2,550 | D32: 3,963 | E32: 56,810 | F32: 595 | G32: =G31*(1+$E$7) -> 29,160 | H32: 27,055
A33: 22 | B33: 27,055 | C33: 2,550 | D33: 2,220 | E33: 31,825 | F33: 333 | G33: =G32*(1+$E$7) -> 31,493 | H33: (0)
A34: 23 | B34: (0) | C34: 2,550 | D34: 191 | E34: 2,741 | F34: 29 | H34: 2,712
G36: =SUM(G30:G35) -> 112,653
